Workbook

Sheet Visualize Product Sales - Data
B1: How do you Visualize Product Sales Data
B2: Visualization Challenge from Chandoo.org
C4: Sum of Quantity | H4: Per Unit Revenue
B5: Product Name | C5: Jan | D5: Feb | E5: Mar | F5: Apr | G5: May | H5: =C5 -> Jan | I5: =D5 -> Feb | J5: =E5 -> Mar | K5: =F5 -> Apr | L5: =G5 -> May
B6: Dashboard Tutorial #1 | C6: 29 | D6: 35 | E6: 34 | F6: 57 | G6: 25 | H6: 37 | I6: 34.88571429 | J6: 37 | K6: 35.57192982 | L6: 45.12
B7: Excel Formula e-book | C7: 16 | D7: 15 | E7: 62 | F7: 24 | G7: 15 | H7: 10 | I7: 10 | J7: 10 | K7: 9.583333333 | L7: 10
B8: Excel School - Dashboards Membership | C8: 121 | D8: 42 | E8: 50 | F8: 32 | G8: 35 | H8: 177.0421488 | I8: 185.6 | J8: 188.2968 | K8: 191.278125 | L8: 191.96
B9: Excel School - Download Membership | C9: 42 | D9: 25 | E9: 13 | F9: 10 | G9: 11 | H9: 88.16071429 | I9: 92.1 | J9: 93.58461538 | K9: 97 | L9: 94.35454545
B10: Excel School - Online Membership | C10: 12 | D10: 10 | E10: 7 | F10: 2 | G10: 2 | H10: 64.5 | I10: 60.2 | J10: 66.04285714 | K10: 67 | L10: 67
B11: PM Templates for Excel [2003] | C11: 15 | D11: 22 | E11: 16 | F11: 12 | G11: 18 | H11: 30 | I11: 30 | J11: 30 | K11: 30 | L11: 30
B12: PM Templates for Excel [2007] | C12: 72 | D12: 106 | E12: 96 | F12: 114 | G12: 115 | H12: 29.58333333 | I12: 29.73084906 | J12: 29.07510417 | K12: 29.47368421 | L12: 29.47826087
B13: PM Templates for Excel [both] | C13: 20 | D13: 14 | E13: 14 | F13: 14 | G13: 17 | H13: 45 | I13: 45 | J13: 43.92857143 | K13: 45 | L13: 45
B14: Total | C14: =SUM(C6:C13) -> 327 | D14: =SUM(D6:D13) -> 269 | E14: =SUM(E6:E13) -> 292 | F14: =SUM(F6:F13) -> 265 | G14: =SUM(G6:G13) -> 238

Sheet Report
A3: =ChartData!G2+4 -> 9
A4: =ChartData!J2 -> 12 | B4: =ChartData!C4 -> Product Name | C4: =ChartData!H2 -> Apr
B6: =ChartData!C5 -> Dashboard Tutorial #1 | C6: =OFFSET(ChartData!C5,0,ChartData!$G$2) -> 35.57192982
B8: =ChartData!C7 -> Excel Formula e-book | C8: =OFFSET(ChartData!C7,0,ChartData!$G$2) -> 9.583333333
B10: =ChartData!C9 -> Excel School - Dashboards Membership | C10: =OFFSET(ChartData!C9,0,ChartData!$G$2) -> 191.278125
B12: =ChartData!C11 -> Excel School - Download Membership | C12: =OFFSET(ChartData!C11,0,ChartData!$G$2) -> 97
B14: =ChartData!C13 -> Excel School - Online Membership | C14: =OFFSET(ChartData!C13,0,ChartData!$G$2) -> 67
B16: =ChartData!C15 -> PM Templates for Excel [2003] | C16: =OFFSET(ChartData!C15,0,ChartData!$G$2) -> 30
B18: =ChartData!C17 -> PM Templates for Excel [2007] | C18: =OFFSET(ChartData!C17,0,ChartData!$G$2) -> 29.47368421
B20: =ChartData!C19 -> PM Templates for Excel [both] | C20: =OFFSET(ChartData!C19,0,ChartData!$G$2) -> 45
B22: =IF(ChartData!$C$2=2, "", ChartData!C21) ->  | C22: =IF(ChartData!$C$2=2,"",OFFSET(ChartData!C21,0,ChartData!$G$2)) -> 
B25: Select a product above to highlight series
B26: Click a month on the chart display breakdown above

Sheet ChartData (hidden)
N1: =COLUMN() -> 14
C2: 2 | D2: =CHOOSE(C2,'Visualize Product Sales - Data'!C4,'Visualize Product Sales - Data'!H4, "Total Revenue") -> Per Unit Revenue | G2: 5 | H2: =OFFSET(C4,0,G2) -> Apr | J2: 12 | K2: =VLOOKUP(J2,B5:C21,2,TRUE) -> Excel School - Download Membership | N2: =OFFSET(B4,MATCH(J2,B5:B21),-1) -> 5
C4: ='Visualize Product Sales - Data'!B5 -> Product Name | D4: =CHOOSE(C2,"Total YTD", "Average YTD","Total YTD") -> Average YTD | E4: ='Visualize Product Sales - Data'!C5 -> Jan | F4: ='Visualize Product Sales - Data'!D5 -> Feb | G4: ='Visualize Product Sales - Data'!E5 -> Mar | H4: ='Visualize Product Sales - Data'!F5 -> Apr | I4: ='Visualize Product Sales - Data'!G5 -> May | J4: Jun | K4: Jul | L4: Aug | M4: Sep | N4: Oct | O4: Nov | P4: Dec
A5: 8 | B5: 6 | C5: ='Visualize Product Sales - Data'!B6 -> Dashboard Tutorial #1 | D5: =CHOOSE($C$2,SUM(E5:P5),AVERAGE(E5:P5),SUM(E5:P5)) -> 37.91552882 | E5: =CHOOSE($C$2,'Visualize Product Sales - Data'!C6,'Visualize Product Sales - Data'!H6, 'Visualize Product Sales - Data'!C6*'Visualize Product Sales - Data'!H6) -> 37 | F5: =CHOOSE($C$2,'Visualize Product Sales - Data'!D6,'Visualize Product Sales - Data'!I6, 'Visualize Product Sales - Data'!D6*'Visualize Product Sales - Data'!I6) -> 34.88571429 | G5: =CHOOSE($C$2,'Visualize Product Sales - Data'!E6,'Visualize Product Sales - Data'!J6, 'Visualize Product Sales - Data'!E6*'Visualize Product Sales - Data'!J6) -> 37 | H5: =CHOOSE($C$2,'Visualize Product Sales - Data'!F6,'Visualize Product Sales - Data'!K6, 'Visualize Product Sales - Data'!F6*'Visualize Product Sales - Data'!K6) -> 35.57192982 | I5: =CHOOSE($C$2,'Visualize Product Sales - Data'!G6,'Visualize Product Sales - Data'!L6, 'Visualize Product Sales - Data'!G6*'Visualize Product Sales - Data'!L6) -> 45.12
C6: 6 | E6: =IF($C6=$J$2,E5,"") ->  | F6: =IF($C6=$J$2,F5,"") -> 
A7: 7 | B7: 8 | C7: ='Visualize Product Sales - Data'!B7 -> Excel Formula e-book | D7: =CHOOSE($C$2,SUM(E7:P7),AVERAGE(E7:P7),SUM(E7:P7)) -> 9.916666667 | E7: =CHOOSE($C$2,'Visualize Product Sales - Data'!C7,'Visualize Product Sales - Data'!H7, 'Visualize Product Sales - Data'!C7*'Visualize Product Sales - Data'!H7) -> 10 | F7: =CHOOSE($C$2,'Visualize Product Sales - Data'!D7,'Visualize Product Sales - Data'!I7, 'Visualize Product Sales - Data'!D7*'Visualize Product Sales - Data'!I7) -> 10 | G7: =CHOOSE($C$2,'Visualize Product Sales - Data'!E7,'Visualize Product Sales - Data'!J7, 'Visualize Product Sales - Data'!E7*'Visualize Product Sales - Data'!J7) -> 10 | H7: =CHOOSE($C$2,'Visualize Product Sales - Data'!F7,'Visualize Product Sales - Data'!K7, 'Visualize Product Sales - Data'!F7*'Visualize Product Sales - Data'!K7) -> 9.583333333 | I7: =CHOOSE($C$2,'Visualize Product Sales - Data'!G7,'Visualize Product Sales - Data'!L7, 'Visualize Product Sales - Data'!G7*'Visualize Product Sales - Data'!L7) -> 10
C8: 8 | E8: =IF($C8=$J$2,E7,"") ->  | F8: =IF($C8=$J$2,F7,"") ->  | G8: =IF($C8=$J$2,G7,"") ->  | H8: =IF($C8=$J$2,H7,"") ->  | I8: =IF($C8=$J$2,I7,"") -> 
A9: 6 | B9: 10 | C9: ='Visualize Product Sales - Data'!B8 -> Excel School - Dashboards Membership | D9: 186.8354148 | E9: =CHOOSE($C$2,'Visualize Product Sales - Data'!C8,'Visualize Product Sales - Data'!H8, 'Visualize Product Sales - Data'!C8*'Visualize Product Sales - Data'!H8) -> 177.0421488 | F9: =CHOOSE($C$2,'Visualize Product Sales - Data'!D8,'Visualize Product Sales - Data'!I8, 'Visualize Product Sales - Data'!D8*'Visualize Product Sales - Data'!I8) -> 185.6 | G9: =CHOOSE($C$2,'Visualize Product Sales - Data'!E8,'Visualize Product Sales - Data'!J8, 'Visualize Product Sales - Data'!E8*'Visualize Product Sales - Data'!J8) -> 188.2968 | H9: =CHOOSE($C$2,'Visualize Product Sales - Data'!F8,'Visualize Product Sales - Data'!K8, 'Visualize Product Sales - Data'!F8*'Visualize Product Sales - Data'!K8) -> 191.278125 | I9: =CHOOSE($C$2,'Visualize Product Sales - Data'!G8,'Visualize Product Sales - Data'!L8, 'Visualize Product Sales - Data'!G8*'Visualize Product Sales - Data'!L8) -> 191.96
C10: 10 | E10: =IF($C10=$J$2,E9,"") ->  | F10: =IF($C10=$J$2,F9,"") ->  | G10: =IF($C10=$J$2,G9,"") ->  | H10: =IF($C10=$J$2,H9,"") ->  | I10: =IF($C10=$J$2,I9,"") -> 
A11: 5 | B11: 12 | C11: ='Visualize Product Sales - Data'!B9 -> Excel School - Download Membership | D11: 93.03997502 | E11: =CHOOSE($C$2,'Visualize Product Sales - Data'!C9,'Visualize Product Sales - Data'!H9, 'Visualize Product Sales - Data'!C9*'Visualize Product Sales - Data'!H9) -> 88.16071429 | F11: =CHOOSE($C$2,'Visualize Product Sales - Data'!D9,'Visualize Product Sales - Data'!I9, 'Visualize Product Sales - Data'!D9*'Visualize Product Sales - Data'!I9) -> 92.1 | G11: =CHOOSE($C$2,'Visualize Product Sales - Data'!E9,'Visualize Product Sales - Data'!J9, 'Visualize Product Sales - Data'!E9*'Visualize Product Sales - Data'!J9) -> 93.58461538 | H11: =CHOOSE($C$2,'Visualize Product Sales - Data'!F9,'Visualize Product Sales - Data'!K9, 'Visualize Product Sales - Data'!F9*'Visualize Product Sales - Data'!K9) -> 97 | I11: =CHOOSE($C$2,'Visualize Product Sales - Data'!G9,'Visualize Product Sales - Data'!L9, 'Visualize Product Sales - Data'!G9*'Visualize Product Sales - Data'!L9) -> 94.35454545
C12: 12 | E12: =IF($C12=$J$2,E11,"") -> 88.16071429 | F12: =IF($C12=$J$2,F11,"") -> 92.1 | G12: =IF($C12=$J$2,G11,"") -> 93.58461538 | H12: =IF($C12=$J$2,H11,"") -> 97 | I12: =IF($C12=$J$2,I11,"") -> 94.35454545
A13: 4 | B13: 14 | C13: ='Visualize Product Sales - Data'!B10 -> Excel School - Online Membership | D13: 64.94857143 | E13: =CHOOSE($C$2,'Visualize Product Sales - Data'!C10,'Visualize Product Sales - Data'!H10, 'Visualize Product Sales - Data'!C10*'Visualize Product Sales - Data'!H10) -> 64.5 | F13: =CHOOSE($C$2,'Visualize Product Sales - Data'!D10,'Visualize Product Sales - Data'!I10, 'Visualize Product Sales - Data'!D10*'Visualize Product Sales - Data'!I10) -> 60.2 | G13: =CHOOSE($C$2,'Visualize Product Sales - Data'!E10,'Visualize Product Sales - Data'!J10, 'Visualize Product Sales - Data'!E10*'Visualize Product Sales - Data'!J10) -> 66.04285714 | H13: =CHOOSE($C$2,'Visualize Product Sales - Data'!F10,'Visualize Product Sales - Data'!K10, 'Visualize Product Sales - Data'!F10*'Visualize Product Sales - Data'!K10) -> 67 | I13: =CHOOSE($C$2,'Visualize Product Sales - Data'!G10,'Visualize Product Sales - Data'!L10, 'Visualize Product Sales - Data'!G10*'Visualize Product Sales - Data'!L10) -> 67
C14: 14 | E14: =IF($C14=$J$2,E13,"") ->  | F14: =IF($C14=$J$2,F13,"") ->  | G14: =IF($C14=$J$2,G13,"") ->  | H14: =IF($C14=$J$2,H13,"") ->  | I14: =IF($C14=$J$2,I13,"") -> 
A15: 3 | B15: 16 | C15: ='Visualize Product Sales - Data'!B11 -> PM Templates for Excel [2003] | D15: 30 | E15: =CHOOSE($C$2,'Visualize Product Sales - Data'!C11,'Visualize Product Sales - Data'!H11, 'Visualize Product Sales - Data'!C11*'Visualize Product Sales - Data'!H11) -> 30 | F15: =CHOOSE($C$2,'Visualize Product Sales - Data'!D11,'Visualize Product Sales - Data'!I11, 'Visualize Product Sales - Data'!D11*'Visualize Product Sales - Data'!I11) -> 30 | G15: =CHOOSE($C$2,'Visualize Product Sales - Data'!E11,'Visualize Product Sales - Data'!J11, 'Visualize Product Sales - Data'!E11*'Visualize Product Sales - Data'!J11) -> 30 | H15: =CHOOSE($C$2,'Visualize Product Sales - Data'!F11,'Visualize Product Sales - Data'!K11, 'Visualize Product Sales - Data'!F11*'Visualize Product Sales - Data'!K11) -> 30 | I15: =CHOOSE($C$2,'Visualize Product Sales - Data'!G11,'Visualize Product Sales - Data'!L11, 'Visualize Product Sales - Data'!G11*'Visualize Product Sales - Data'!L11) -> 30
C16: 16 | E16: =IF($C16=$J$2,E15,"") ->  | F16: =IF($C16=$J$2,F15,"") ->  | G16: =IF($C16=$J$2,G15,"") ->  | H16: =IF($C16=$J$2,H15,"") ->  | I16: =IF($C16=$J$2,I15,"") -> 
A17: 2 | B17: 18 | C17: ='Visualize Product Sales - Data'!B12 -> PM Templates for Excel [2007] | D17: 29.46824633 | E17: =CHOOSE($C$2,'Visualize Product Sales - Data'!C12,'Visualize Product Sales - Data'!H12, 'Visualize Product Sales - Data'!C12*'Visualize Product Sales - Data'!H12) -> 29.58333333 | F17: =CHOOSE($C$2,'Visualize Product Sales - Data'!D12,'Visualize Product Sales - Data'!I12, 'Visualize Product Sales - Data'!D12*'Visualize Product Sales - Data'!I12) -> 29.73084906 | G17: =CHOOSE($C$2,'Visualize Product Sales - Data'!E12,'Visualize Product Sales - Data'!J12, 'Visualize Product Sales - Data'!E12*'Visualize Product Sales - Data'!J12) -> 29.07510417 | H17: =CHOOSE($C$2,'Visualize Product Sales - Data'!F12,'Visualize Product Sales - Data'!K12, 'Visualize Product Sales - Data'!F12*'Visualize Product Sales - Data'!K12) -> 29.47368421 | I17: =CHOOSE($C$2,'Visualize Product Sales - Data'!G12,'Visualize Product Sales - Data'!L12, 'Visualize Product Sales - Data'!G12*'Visualize Product Sales - Data'!L12) -> 29.47826087
C18: 18 | E18: =IF($C18=$J$2,E17,"") ->  | F18: =IF($C18=$J$2,F17,"") ->  | G18: =IF($C18=$J$2,G17,"") ->  | H18: =IF($C18=$J$2,H17,"") ->  | I18: =IF($C18=$J$2,I17,"") -> 
A19: 1 | B19: 20 | C19: ='Visualize Product Sales - Data'!B13 -> PM Templates for Excel [both] | D19: 44.78571429 | E19: =CHOOSE($C$2,'Visualize Product Sales - Data'!C13,'Visualize Product Sales - Data'!H13, 'Visualize Product Sales - Data'!C13*'Visualize Product Sales - Data'!H13) -> 45 | F19: =CHOOSE($C$2,'Visualize Product Sales - Data'!D13,'Visualize Product Sales - Data'!I13, 'Visualize Product Sales - Data'!D13*'Visualize Product Sales - Data'!I13) -> 45 | G19: =CHOOSE($C$2,'Visualize Product Sales - Data'!E13,'Visualize Product Sales - Data'!J13, 'Visualize Product Sales - Data'!E13*'Visualize Product Sales - Data'!J13) -> 43.92857143 | H19: =CHOOSE($C$2,'Visualize Product Sales - Data'!F13,'Visualize Product Sales - Data'!K13, 'Visualize Product Sales - Data'!F13*'Visualize Product Sales - Data'!K13) -> 45 | I19: =CHOOSE($C$2,'Visualize Product Sales - Data'!G13,'Visualize Product Sales - Data'!L13, 'Visualize Product Sales - Data'!G13*'Visualize Product Sales - Data'!L13) -> 45
C20: 20 | E20: =IF($C20=$J$2,E19,"") ->  | F20: =IF($C20=$J$2,F19,"") ->  | G20: =IF($C20=$J$2,G19,"") ->  | H20: =IF($C20=$J$2,H19,"") ->  | I20: =IF($C20=$J$2,I19,"") -> 
B21: 22 | C21: ='Visualize Product Sales - Data'!B14 -> Total | E21: =CHOOSE($C$2,'Visualize Product Sales - Data'!C14,"","") ->  | F21: =CHOOSE($C$2,'Visualize Product Sales - Data'!D14,"","") ->  | G21: =CHOOSE($C$2,'Visualize Product Sales - Data'!E14,"","") ->  | H21: =CHOOSE($C$2,'Visualize Product Sales - Data'!F14,"","") ->  | I21: =CHOOSE($C$2,'Visualize Product Sales - Data'!G14,"","") -> 
C24: ='Visualize Product Sales - Data'!C4 -> Sum of Quantity
C25: ='Visualize Product Sales - Data'!H4 -> Per Unit Revenue
C26: Total Revenue
D30: =D2 -> Per Unit Revenue
D31: select figures
